Cogmind - Beta 13 @@@ ROGUE MODE // 2024.04.04 @ 12:00:08 Player: Zaz Result: Destroyed by H-61 Shepherd with Heavy Assault Cannon Performance ------------- Evolutions (2) 1000 Regions Visited (6) 1200 Robots Destroyed (139) 695 Value Destroyed (3543) 3543 Prototype IDs (28) 560 Alien Tech Used (0) 0 Bonus (778) 778 TOTAL SCORE: 7776 Bonus ------- High Alert Combat Kills 443 Follower Combat Kills 35 Aligned with FarCom 300 Cogmind --------- Core Integrity 0/550 Matter 283/300 Energy 85/100 System Corruption 0% Temperature Cool (16) Movement Rolling (195) Ox7 Location -8/Materials Parts ------- > --- POWER (1) -------- (None) > --- PROPULSION (4) --- Armored Wheel > --- UTILITY (4) ------ Huge Storage Unit Advanced Weight Redist. System Targeting Computer > --- WEAPON (2) ------- Improved Assault Rifle Scythe > --- INVENTORY (25) --- Cesium-ion Thruster Cesium-ion Thruster Improved VTOL Module Improved VTOL Module Improved VTOL Module Large Storage Unit Improved Terrain Scanner Insulated Plating Hacking Suite Hacking Suite Hacking Suite System Shield Improved Assault Rifle Improved Assault Rifle Improved Assault Rifle Mini Grenade Launcher Improved Datajack Peak State ------------ > --- POWER ------------ Light Nuclear Core > --- PROPULSION ------- Light Treads Light Treads Light Treads Improved VTOL Module > --- UTILITY ---------- Large Storage Unit Hardened Medium Armor Plating Hardened Medium Armor Plating Supersonic Drone Bay > --- WEAPON ----------- Improved Assault Rifle Flail > --- INVENTORY -------- Light Nuclear Core Light Nuclear Core Light Treads Armored Wheel Small Storage Unit Advanced Weight Redist. System Insulated Plating Hacking Suite Hacking Suite System Shield Shotgun Improved Assault Rifle Improved Assault Rifle Rocket Launcher Mini Grenade Launcher [Rating: 33] Favorites ----------- Power Light Nuclear Core Engine Ion Engine Power Core Light Nuclear Core Propulsion Light Treads Treads Light Treads Leg Aluminum Leg Wheel Armored Wheel Flight Unit Improved VTOL Module Utility Large Storage Unit Device Advanced Weight Redist. System Storage Large Storage Unit Processor Improved Targeting Computer Protection Hardened Medium Armor Plating Weapon Improved Assault Rifle Ballistic Gun Improved Assault Rifle Launcher Improved Grenade Launcher Impact Weapon Great Maul Slashing Weapon Scythe Build | -11 -10 -9 -9 -9 -8 -8 ------- Run | Yrd Mat Mat Min Exi Min Mat Slots Evolved 4 | . . 2 . . . 2 Power . | . . . . . . . Propulsion 2 | . . 1 . . . 1 Utility 2 | . . 1 . . . 1 Weapon . | . . . . . . . Parts Attached 177 | 6 17 67 8 1 . 78 Power 11 | 1 1 5 . . . 4 Engine 7 | 1 1 5 . . . . Core 4 | . . . . . . 4 Reactor . | . . . . . . . Propulsion 92 | 2 8 49 4 . . 29 Treads 50 | 1 5 20 2 . . 22 Leg 6 | . . 6 . . . . Wheel 35 | 1 3 23 2 . . 6 Hover . | . . . . . . . Flight 1 | . . . . . . 1 Utility 18 | 1 3 5 . 1 . 8 Device 4 | . 1 1 . 1 . 1 Storage 3 | 1 1 . . . . 1 Processor 5 | . 1 2 . . . 2 Hackware . | . . . . . . . Protection 6 | . . 2 . . . 4 Artifact . | . . . . . . . Weapon 56 | 2 5 8 4 . . 37 Energy Gun . | . . . . . . . Energy Cannon . | . . . . . . . Ballistic Gun 39 | 2 5 7 2 . . 23 Ballistic Cannon . | . . . . . . . Launcher 7 | . . 1 1 . . 5 Special Weapon . | . . . . . . . Impact Weapon 6 | . . . 1 . . 5 Slashing Weapon 4 | . . . . . . 4 Piercing Weapon . | . . . . . . . Special Melee Weapon . | . . . . . . . Unidentified Prototypes 5 | . . 3 . . . 2 Parts Lost 18 | . 1 4 . . . 13 Power 3 | . . . . . . 3 Propulsion 5 | . . 2 . . . 3 Utility 4 | . . 1 . . . 3 Weapon 6 | . 1 1 . . . 4 Highest Loss Streak 8 | . 1 2 . . . 8 To Critical Strikes . | . . . . . . . Average Slot Usage (%) 98 | . 99 99 100 100 100 96 Engine 7 | . 14 11 11 11 11 . Core 3 | . . . . . . 8 Treads 21 | . 16 16 14 11 11 32 Wheel 9 | . 11 12 18 22 22 1 Device 4 | . . 3 . 1 11 9 Storage 13 | . 22 11 11 11 11 9 Processor 7 | . 4 14 11 11 11 3 Protection 7 | . . 4 11 9 . 13 Ballistic Gun 21 | . 28 21 20 22 22 16 Naked Turns . | . . . . . . . Heaviest Build 110 | 13 34 42 43 42 35 110 Greatest Support 91 | 10 40 60 60 24 24 91 Greatest Overweight (x) 7 | 1 3 2 1 1 1 7 Average Overweight (x) 1 | . 1 . . 1 1 . Largest Inventory Capacity 25 | 8 15 15 15 15 15 25 Average Capacity 16 | 7 14 15 15 15 15 18 Most Carried 25 | 8 15 15 15 15 15 25 Average Carried 15 | 4 13 14 14 14 15 17 Final Capacity 25 | 8 15 15 15 15 15 25 Final Carried 17 | 6 15 15 15 15 15 17 Class Distribution -------------------- 74% | Mutant 25% | Scavenger-Mutant Dominant Class ---------------- Mutant | -10/Materials Mutant | -9/Materials Mutant | -9/Mines Mutant | -9/Exiles Mutant | -8/Mines Mutant | -8/Materials Resources | -11 -10 -9 -9 -9 -8 -8 ----------- Run | Yrd Mat Mat Min Exi Min Mat Matter Collected 3980 | 260 385 1157 246 . . 1932 Remotely . | . . . . . . . Salvage Created 4798 | . 499 1437 243 . . 2619 Parts 302 | . 36 100 15 . . 151 Haulers Intercepted 10 | . 1 3 . . . 6 Recyclers Shooed 5 | . 1 3 . . . 1 Parts Field Recycled . | . . . . . . . Retrieved Matter . | . . . . . . . Parts Self-Destructed . | . . . . . . . Prevented . | . . . . . . . Kills | -11 -10 -9 -9 -9 -8 -8 ------- Run | Yrd Mat Mat Min Exi Min Mat Combat Hostiles Destroyed 93 | . 12 30 6 . . 45 Guns 80 | . 12 30 5 . . 33 AOE 13 | . . . 1 . . 12 Classes Destroyed 17 | . 6 2 2 . . 7 Worker 7 | . . 2 2 . . 3 Builder 6 | . . . . . . 6 Tunneler 2 | . . . 1 . . 1 Hauler 10 | . 1 3 . . . 6 Recycler 7 | . 1 2 . . . 4 Mechanic 1 | . . . . . . 1 Operator 6 | . 2 2 . . . 2 Watcher 10 | . 1 5 . . . 4 Swarmer 22 | . 6 13 . . . 3 Cutter 3 | . . . . . . 3 Grunt 46 | . 6 11 5 . . 24 Duelist 1 | . . . . . . 1 Protector 1 | . . . . . . 1 Sentry 14 | . . 6 . . . 8 Specialist 4 | . . . . . . 4 Hunter 1 | . . . . . . 1 Assembled 1 | . . . 1 . . . Best Kill Streak 11 | . 5 11 6 . . 11 Combat Bots Only 7 | . 4 6 5 . . 7 Max Kills in Single Turn 4 | . 1 2 1 . . 4 Gunslinging 1 | . . 1 . . . . Exploded 2 | . . . 1 . . 2 Melee . | . . . . . . . Uniques/NPCs Destroyed . | . . . . . . . Combat | -11 -10 -9 -9 -9 -8 -8 -------- Run | Yrd Mat Mat Min Exi Min Mat Hostile Shots Fired 523 | . 84 144 13 . . 282 Missed 137 | . 27 35 5 . . 70 Damage Taken 5761 | . 555 1156 136 . . 3914 Core 812 | . 64 136 34 . . 578 Absorbed by Shields . | . . . . . . . Core Remaining (%) 77 | 100 74 . . . 57 . Volleys Fired 350 | . 62 94 21 . . 173 Largest 2 | . 2 2 2 . . 2 Hottest 50 | . 40 46 46 . . 50 Shots Fired 652 | . 124 186 27 . . 315 Gun 623 | . 124 186 24 . . 289 Cannon . | . . . . . . . Launcher 29 | . . . 3 . . 26 Special . | . . . . . . . Kinetic 623 | . 124 186 24 . . 289 Thermal . | . . . . . . . Explosive 22 | . . . 3 . . 19 Electromagnetic 7 | . . . . . . 7 Robot Hit Streak 40 | . 9 20 26 . . 40 Robot Miss Streak 4 | . 4 3 1 . . 4 Penetration Max . | . . . . . . . Secondary Targets 4 | . 1 2 . . . 1 Max Gunslinging Chain 1 | . 1 1 . . . 1 Shots Hit Robots 456 | . 68 139 23 . . 226 Core Hits 239 | . 30 63 10 . . 136 Critical Kills 3 | . . 2 . . . 1 Critical Parts Destroyed 1 | . . 1 . . . . Critical Strikes 4 | . . 3 . . . 1 Destroy 4 | . . 3 . . . 1 Melee Attacks 17 | . . . 7 . . 10 Impact 12 | . . . 7 . . 5 Slashing 5 | . . . . . . 5 Piercing . | . . . . . . . Sneak Attacks . | . . . . . . . Combat Hostiles . | . . . . . . . Follow-up Attacks . | . . . . . . . Damage Inflicted 9271 | . 819 2078 396 . . 5978 Guns 6608 | . 819 2076 318 . . 3395 Cannons . | . . . . . . . Explosions 2628 | . . . 78 . . 2550 Melee . | . . . . . . . Ramming 35 | . . 2 . . . 33 Kinetic 6608 | . 819 2076 318 . . 3395 Thermal 204 | . . . . . . 204 Explosive 1797 | . . . 78 . . 1719 Electromagnetic 627 | . . . . . . 627 Impact . | . . . . . . . Slashing . | . . . . . . . Piercing . | . . . . . . . Highest Corruption 1 | . 1 . . . . . Average Corruption 1 | . 1 . . . . . Corruption Purged . | . . . . . . . Corruption Blocked . | . . . . . . . Effects 17 | . 17 . . . . . Message Errors 5 | . 5 . . . . . Matter Fused 1 | . 1 . . . . . Heat Flow Errors 2 | . 2 . . . . . Energy Discharges 2 | . 2 . . . . . Parts Rejected 1 | . 1 . . . . . Data Loss (minor) 3 | . 3 . . . . . Data Loss (major) 1 | . 1 . . . . . Misfires 1 | . 1 . . . . . Alerts 1 | . 1 . . . . . Overload Shots . | . . . . . . . Overflow Damage 96 | . . . . . . 96 Projectiles . | . . . . . . . Explosions 96 | . . . . . . 96 Melee . | . . . . . . . Knockbacks . | . . . . . . . Impact . | . . . . . . . Kinetic . | . . . . . . . Secondary . | . . . . . . . Self-Inflicted Damage 222 | . . . 49 . . 173 Shots 8 | . . . 1 . . 7 Rammed 4 | . . 1 . . . 3 Targets Rammed 5 | . . 1 . . . 4 Kicked . | . . . . . . . Crushed 1 | . . . . . . 1 Highest Temperature 244 | . 244 7 1 . . 168 Average Temperature 38 | . 119 2 1 . . 34 Received Heat Transfer 1917 | . 204 276 48 . . 1389 Effects 1 | . 1 . . . . . Energy Bleed 1 | . 1 . . . . . Siege Activations . | . . . . . . . Robots Corrupted . | . . . . . . . Combat Hostiles . | . . . . . . . Parts Fried 3 | . . . . . . 3 Impact Corruptions . | . . . . . . . Robots Melted . | . . . . . . . Combat Hostiles . | . . . . . . . Parts Melted 1 | . . . 1 . . . Heat Transferred 325 | . . . . . . 325 Parts Sabotaged . | . . . . . . . Parts Stolen . | . . . . . . . Parts Stripped . | . . . . . . . Power Chain Reactions 4 | . . . . . . 4 Alert | -11 -10 -9 -9 -9 -8 -8 ------- Run | Yrd Mat Mat Min Exi Min Mat Peak Influence 930 | . 185 686 368 . . 930 Initial 234 | . . . 234 . . . Average 188 | . 37 321 275 . . 212 Maximum Alert Level 3 | . . 2 1 . . 3 Low Security (%) 64 | 100 100 33 . . 100 64 Level 1 18 | . . 13 100 . . 24 Level 2 14 | . . 52 . . . 4 Level 3 2 | . . . . . . 6 Level 4 . | . . . . . . . Level 5 . | . . . . . . . High Security . | . . . . . . . Max Security . | . . . . . . . Squads Dispatched 23 | . 4 5 . . . 14 Investigation 7 | . 2 2 . . . 3 Extermination . | . . . . . . . Reinforcement 10 | . 2 2 . . . 6 Assault 3 | . . 1 . . . 2 Garrison 3 | . . . . . . 3 Intercept . | . . . . . . . Searches Triggered . | . . . . . . . Construction Impeded 1 | . . . . . . 1 Haulers Reinforced . | . . . . . . . Active Scanning Responses . | . . . . . . . Cargo Convoy Interrupts . | . . . . . . . Stealth | -11 -10 -9 -9 -9 -8 -8 --------- Run | Yrd Mat Mat Min Exi Min Mat Distress Signals 12 | . 1 7 . . . 4 Communications Jammed . | . . . . . . . Distress Signals . | . . . . . . . Times Spotted 153 | . 24 48 8 . . 73 Peak Tracking Total 7 | . 6 7 4 . . 6 Tactical Retreats 5 | . . 3 1 . . 1 Traps | -11 -10 -9 -9 -9 -8 -8 ------- Run | Yrd Mat Mat Min Exi Min Mat Traps Triggered 5 | . 3 2 . . . . Indirectly . | . . . . . . . Trap Hack Attempts . | . . . . . . . Triggered . | . . . . . . . Disarmed . | . . . . . . . Reprogrammed . | . . . . . . . Reused . | . . . . . . . Traps Extracted . | . . . . . . . Installed . | . . . . . . . Triggered . | . . . . . . . Machines | -11 -10 -9 -9 -9 -8 -8 ---------- Run | Yrd Mat Mat Min Exi Min Mat Machines Disabled 2 | . . 1 . . . 1 Max in Single Turn 1 | . . 1 . . . 1 Garrison Access 1 | . . . . . . 1 Machines Repaired . | . . . . . . . Machines Dismantled . | . . . . . . . Machines Sabotaged . | . . . . . . . Overloaded Fab Kills . | . . . . . . . Hacking | -11 -10 -9 -9 -9 -8 -8 --------- Run | Yrd Mat Mat Min Exi Min Mat Machines Accessed 26 | . 5 6 . 5 . 10 Terminals 17 | . 5 5 . . . 7 Fabricators . | . . . . . . . Repair Stations 1 | . . . . . . 1 Recycling Units 1 | . . . . . . 1 Scanalyzers 2 | . . 1 . . . 1 Garrison Access . | . . . . . . . Total Hacks 99 | . 10 15 . 50 . 24 Successful 71 | . 5 5 . 50 . 11 Failed 27 | . 5 10 . . . 12 Catastrophic 4 | . 1 1 . . . 2 Database Lockouts 1 | . . . . . . 1 Manual 28 | . 2 11 . 1 . 14 Terminals 37 | . 10 12 . . . 15 Fabricators . | . . . . . . . Repair Stations 2 | . . . . . . 2 Recycling Units 3 | . . . . . . 3 Scanalyzers 7 | . . 3 . . . 4 Garrison Access . | . . . . . . . Terminal Hacks 63 | . 5 4 . 50 . 4 Record 50 | . 1 . . 49 . . Part Schematic 2 | . . . . . . 2 Robot Analysis 1 | . 1 . . . . . Scanalyzer Index 1 | . . . . . . 1 Alert Level 1 | . 1 . . . . . Dispatch Records 1 | . 1 . . . . . Maintenance Status 1 | . . 1 . . . . Transport Status 1 | . . 1 . . . . Coupling Status 1 | . . 1 . . . . Hauler Manifests 3 | . 1 1 . . . 1 Derelict Proto ID Bank 1 | . . . . 1 . . Fabricator Hacks . | . . . . . . . Repair Station Hacks 1 | . . . . . . 1 Scan Component 1 | . . . . . . 1 Recycling Unit Hacks 2 | . . . . . . 2 Report Inventory 1 | . . . . . . 1 Retrieve Components 1 | . . . . . . 1 Scanalyzer 5 | . . 1 . . . 4 Insert Component 3 | . . 1 . . . 2 Analyze 2 | . . . . . . 2 Garrison Access Hacks . | . . . . . . . Unauthorized Hacks . | . . . . . . . Terminals . | . . . . . . . Fabricators . | . . . . . . . Repair Stations . | . . . . . . . Recycling Units . | . . . . . . . Scanalyzers . | . . . . . . . Garrison Access . | . . . . . . . Data Cores Recovered . | . . . . . . . Used . | . . . . . . . Hacking Detections 18 | . 2 6 . . . 10 Full Trace Events 6 | . 1 2 . . . 3 Feedback Events . | . . . . . . . Feedback Blocked . | . . . . . . . Robot Schematics Acquired . | . . . . . . . Robots Built . | . . . . . . . Authchips . | . . . . . . . Time . | . . . . . . . Total Robot Build Rating . | . . . . . . . Part Schematics Acquired 4 | . . . . . . 4 Parts Built . | . . . . . . . Authchips . | . . . . . . . Time . | . . . . . . . Total Part Build Rating . | . . . . . . . Parts Repaired . | . . . . . . . Time . | . . . . . . . Parts Recycled . | . . . . . . . Recycled Matter . | . . . . . . . Retrieved Matter . | . . . . . . . Retrieved Components 3 | . . . . . . 3 Parts Scanalyzed 2 | . . . . . . 2 Part Schematics Acquired 2 | . . . . . . 2 Parts Damaged . | . . . . . . . Bothacking | -11 -10 -9 -9 -9 -8 -8 ------------ Run | Yrd Mat Mat Min Exi Min Mat Used RIF Installer . | . . . . . . . Robots Hacked . | . . . . . . . Non-combat . | . . . . . . . Combat . | . . . . . . . Robot Hacks Applied . | . . . . . . . Relay Couplers Released 1 | . . . . . . 1 Machine Destruction 1 | . . . . . . 1 Fabnet Peak Effective % . | . . . . . . . Robots Rewired . | . . . . . . . Allies Hacked . | . . . . . . . Hacks Repelled . | . . . . . . . Allies | -11 -10 -9 -9 -9 -8 -8 -------- Run | Yrd Mat Mat Min Exi Min Mat Total Allies 3 | . . . 3 . . . Largest Group 3 | . . . 3 . . . Highest-Rated Group 40 | . . . 40 . . . Highest-Rated Ally 16 | . . . 16 . . . Total Orders 6 | . . . . . 2 4 EXPLORE 4 | . . . . . 1 3 RETURN 2 | . . . . . 1 1 Ally Attacks 17 | . . . 17 . . . Total Damage 194 | . . . 194 . . . Kills 2 | . . . 2 . . . Allies Corrupted . | . . . . . . . Allies Melted . | . . . . . . . Intel | -11 -10 -9 -9 -9 -8 -8 ------- Run | Yrd Mat Mat Min Exi Min Mat Robot Analysis Total 1 | . 1 . . . . . Derelict Logs Recovered . | . . . . . . . Drone Launches 4 | . . . . . 1 3 Drone Recoveries 3 | . . . . . 1 2 Exploration | -11 -10 -9 -9 -9 -8 -8 ------------- Run | Yrd Mat Mat Min Exi Min Mat Turns Passed 8082 | 71 2026 1675 368 947 36 2959 Spaces Moved 3845 | 59 948 731 211 897 19 980 Core 3 | 1 . . . . . 2 Treads 1483 | . 569 132 9 . . 773 Legs 8 | . . 8 . . . . Wheels 2351 | 58 379 591 202 897 19 205 Hover . | . . . . . . . Flight . | . . . . . . . Fastest Speed 50 | 50 95 100 105 105 105 105 Average Speed 146 | 86 183 129 108 105 105 174 Slowest Speed 400 | 95 240 320 240 105 105 400 Overloaded Moves . | . . . . . . . Propulsion Burnouts . | . . . . . . . Robots Hopped . | . . . . . . . Cave-ins Triggered . | . . . . . . . Exploration Rate (%) 67 | 4 96 65 39 94 98 79 Regions Visited 6 Branch Regions 3 Pre-discovered Areas 1 | . . . . 1 . . Known Exits Taken 1 | . 1 . . . . . Unknown Exits Taken 5 | 1 . 1 1 1 1 . Scrap Searched 1 | . . . 1 . . . Spaces Dug 10 | . . . . . . 10 Terrain Destroyed 164 | . . . 28 . . 136 Melee 10 | . . . . . . 10 Projectile . | . . . . . . . AOE 154 | . . . 28 . . 126 Terrain Rammed . | . . . . . . . Walls Destroyed . | . . . . . . . Machines Disabled . | . . . . . . . Actions | -11 -10 -9 -9 -9 -8 -8 --------- Run | Yrd Mat Mat Min Exi Min Mat Total 5605 | 77 1118 1273 308 902 35 1892 Wait 1051 | 4 70 321 58 . 17 581 Move 3839 | 58 947 730 210 896 18 980 Hop . | . . . . . . . Pick Up 80 | 9 15 23 2 1 . 30 Fast Attach 22 | 3 4 12 . . . 3 Attach 24 | 3 2 4 . . . 15 Detach 2 | . . 1 . . . 1 Swap 131 | . 11 51 8 1 . 60 Drop 81 | . 7 36 2 1 . 35 Fire 350 | . 62 94 21 . . 173 Melee 17 | . . . 7 . . 10 Ram . | . . . . . . . Kick . | . . . . . . . Crush 5 | . . 1 . . . 4 Escape Stasis . | . . . . . . . Rewire 3 | . . . . 3 . . Trap . | . . . . . . . Miscellaneous . | . . . . . . . Route ------- -11/Scrapyard -10/Materials (discovered 4 exits: *Mat x3 / [*Min]) -9/Materials (discovered 3 exits: *Mat / [*Min x2]) -9/Mines -9/Exiles (discovered 2 exits: [*Min x2]) -8/Mines (discovered 2 exits: *Mat x2) -8/Materials (discovered 4 exits: [*Fac x2] / [*Sto x2]) History --------- Turn | Location | Event 12 | -11/Scrapyard | Discovered new exit (range 14) 72 | -11/Scrapyard | Entered Materials 305 | -10/Materials | Build established: Mutant 415 | -10/Materials | Discovered new exit (range 9) 892 | -10/Materials | Discovered new exit (range 16) 1163 | -10/Materials | Discovered new exit (range 11) 1583 | -10/Materials | Discovered new exit (range 14) 1612 | -10/Materials | Identified exit to Materials 2098 | -10/Materials | Entered another Materials area 2098 | -9/Materials | Evolved 2 slots: Propulsion x1, Utility x1 2495 | -9/Materials | Build established: Scavenger-Mutant 2885 | -9/Materials | Discovered new exit (range 9) 2949 | -9/Materials | Build established: Mutant 3178 | -9/Materials | Discovered new exit (range 16) 3600 | -9/Materials | Discovered new exit (range 6) 3698 | -9/Materials | First assault squad dispatched 3773 | -9/Materials | Entered Mines 3779 | -9/Mines | Assisted by bots powering up and referring to "LRC-V3" 3837 | -9/Mines | Excavation squad dispatched 3837 | -9/Mines | A large section of the Mines collapsed 4087 | -9/Mines | Excavation squad dispatched 4136 | -9/Mines | Deemed a non-threat by the Exiles lab entrance 4136 | -9/Mines | Discovered new exit (range 5) 4141 | -9/Mines | Entered Exiles 4161 | -9/Exiles | Discovered new exit (range 14) 4192 | -9/Exiles | Met 8R-AWN 4209 | -9/Exiles | Met EX-HEX 4241 | -9/Exiles | Met EX-BIN 4265 | -9/Exiles | Aligned with FarCom system 4266 | -9/Exiles | Given EX-Vault access code 4327 | -9/Exiles | Opened EX-Vault 4356 | -9/Exiles | Warned to stay clear of 0b10 Research branches 4383 | -9/Exiles | Met EX-DEC 4410 | -9/Exiles | Learned location of Zion (-6) 4443 | -9/Exiles | Discovered new exit (range 10) 4549 | -9/Exiles | Visited The Gauntlet 4925 | -9/Exiles | Found Supersonic Drone Bay 5088 | -9/Exiles | Left Exiles lab with Supersonic Drone Bay 5088 | -9/Exiles | Entered Mines 5091 | -8/Mines | Discovered new exit (range 15) 5097 | -8/Mines | Discovered new exit (range 45) 5124 | -8/Mines | Entered Materials 5124 | -8/Materials | Evolved 2 slots: Propulsion x1, Utility x1 5131 | -8/Materials | Discovered new exit (range 28) 5719 | -8/Materials | Build established: Scavenger-Mutant 6549 | -8/Materials | Central database locked down 6807 | -8/Materials | Discovered new exit (range 4) 6967 | -8/Materials | Build established: Mutant 7681 | -8/Materials | Discovered new exit (range 16) 7773 | -8/Materials | Garrison activated, responded to threat 7811 | -8/Materials | Destroyed 7 combat bots 7924 | -8/Materials | First assault squad dispatched 7974 | -8/Materials | Core integrity fell below 50% 8029 | -8/Materials | Lost 8 parts (1p3n1u3w) 8060 | -8/Materials | Discovered new exit (range 13) 8075 | -8/Materials | Core integrity fell below 20% 8083 | -8/Materials | Destroyed by H-61 Shepherd with Heavy Assault Cannon Last Messages --------------- 08049_ K-01 Serf collects debris. 08056_ The unstable cave ceiling collapses. 08056_ Corrupted Aluminum Leg crushed. 08056_ U-05 Engineer lays Concrete. 08060_ EXIT=FOUND 08065_ ALERT: Garrison Access compromised, dispatching assault squad. 08065_ Garrison Access disabled. 08065_ Relay Coupler [Grunt] tumbles out of Garrison Access. 08068_ Garrison Access disabled. 08070_ Imp. Assault Rifle destroyed. 08070_ Knocked back. 08071_ Acquired 3 matter. 08071_ C-30 ARC bursts open, deploying its payload. 08071_ G-50 Soldier unfolds itself. 08071_ B-36 Bruiser unfolds itself. 08071_ G-47 Trooper unfolds itself. 08071_ M-28 Smith unfolds itself. 08072_ Lgt. Nuclear Core destroyed. 08074_ Knocked back. 08082_ Critical hit (Burn: +37). Map ----- +----------------------------------------------------+ | | | ?????????????????????????????????????????????????? | | ??????########???????????????????????????????????? | | ??????# #???????????????????????????????????? | | ??????# """ #???????????????????????????????????? | | ??????# "" ##########??????????????????????????? | | ??????# # / [#??????????????????????##### | | ??????# # # #??????????????????????# | | ??????# = # #??????????????????????# "" | | ??????# ! =[=# #??????????????????????# "" | | ??????+[ |!=%% !! #??????????????????????# "" | | ????? # =! = !! #????????????########### "" | | ????? # !* ! #######??????# """ """ # "" | | ????" # ! == ##!!!!##???? # """ """ # | | ???? # # # #! !#?# < # """ """ # "" | | ????#?######## " ## #?# # # "" | | ????### # # =%[ #### ### + # " | | ????# ## ! !=%!= # # " | | ????# # < % !%!%! g # [#=!!" | | ????# ## |== ![ = # =!#!! | | ???????? ???# %##! #" ;;#b##################### | | ??????? ??### ### #g #?############ | | ???????????# # ### !; b" ! ! #?# #?# = | | ???????????### ### # "G%H ###* """ #?# = | | ??# ##### # ### # Y ## """ #?# = | | ??# ### %@ ### """ #?# | | ?????####### # ### # """ % #?# #?# | | ??? !! ### ### # """ #?# """ #?# | | ?# !! ?# ## # """ #?# """ ### | | ??? ?## ## # #?# """ + #### | | ?# ! ?# * ################?# # ##?? | | ?############ % #???????????????#####+#### #### | | ???# # #????????????????# | | ???# """ ## ##???????????????# | | ???# """ # #???????????????# | | ???# """ ##?????########### ##### #### | | ???# #??????# ## #???#+#### | | ???# """ #??????# """ ## #???# """ | | ???# """ # * #??????# """ ## #???# """ | | ???# """ % #??????# """ ## #???# """ | | ???# = #??????# ## #???# | | ???######+# #??????# " ## #???# | | ??????# ##??????# T ## #???# ! ! | | ??????# ##???????# ! " ## ########## | | ??????# # = =##???????# ## # | | ??????# # ![!################+### + | | ??????# [ !/ ! =* *%** # | | ??????## ### ###############** # | | ???????# #?###???# # #?######## | | ???????# #???????#]!! ""# ########## | +----------------------------------------------------+ Best States ------------- Heat Dissipation 31 Energy Generation 14 Energy Capacity 280 Matter Stores 300 Matter Capacity 300 Sight Range 16 Robot Scan Range 14 Terrain Scan Density 10 Additional Mass Support 9 Armor Coverage 450 Evasion (%) 44 Targeting Accuracy 6 Armor Integrity Analysis 30 Recoil Reduction 4 Item Schematics ----------------- Hacking Suite | -8/Materials | Scanalyzed System Shield | -8/Materials | Scanalyzed Cesium-ion Thruster | -8/Materials | Hacked Surge Thruster | -8/Materials | Hacked Robot Schematics ------------------ None Fabricated ------------ Nothing Alien Tech Used ----------------- None Achievements -------------- None Challenges ------------ None Game ------ Seed GatlingMissileConstruct Manual? 0 Play Time 01:37:13 Cumulative 16.6 hours Start 2024.04.04 @ 10:14:06 End 2024.04.04 @ 12:00:08 Sessions 1 Manual Loads 0 Difficulty Rogue Special Mode None Game No. 14 Rogue 14 Adventurer 0 Explorer 0 Win Type - Total 0 Types 0/0/0/0/0/0/0/0/0 Lore% 15 Gallery% 20 Achievement% 19 Wizard Run 0 Options --------- Layout 0 ASCII 0 Keyboard 0 Movement Mouse Keybinds 0 Fullscreen 2 Font 20/SmallcapsGlow Map View 140x60 Zoom Use 0% Tactical HUD 1 Map Filters NONE Filters NONE Steam 1 RUN: d66b6efa-2ae9-4b87-964a-f3b5768d900a